bitfinex/quotes_BTCUSD_20251009
["timestamp","ask_amount","ask_price","bid_price","bid_amount"]
[1760036438656,0.23516248,120760.0,120750.0,0.26978146]
[1760036440002,0.43254023,120760.0,120750.0,0.10415]
[1760036440219,0.55571233,120760.0,120740.0,0.1895551]
[1760036440426,0.50683023,120760.0,120740.0,0.31913716]
[1760036441242,0.50683023,120760.0,120750.0,0.16563146]
[1760036441382,0.45764023,120760.0,120750.0,0.19833146]
[1760036441760,0.19128023,120760.0,120750.0,0.19833146]
[1760036441892,0.42592023,120760.0,120750.0,0.26978146]
[1760036442337,0.45768023,120760.0,120750.0,0.22332146]
[1760036442785,0.45764023,120760.0,120750.0,0.22332146]
[1760036443899,0.22304023,120760.0,120750.0,0.22332146]
[1760036444108,0.45764023,120760.0,120750.0,0.22332146]
[1760036444689,0.53763703,120760.0,120750.0,0.05769]
[1760036444892,0.45764023,120760.0,120750.0,0.22332146]
[1760036446120,0.50583023,120760.0,120740.0,0.31913716]
[1760036446316,0.50583023,120760.0,120750.0,0.16563146]
[1760036446751,0.45764023,120760.0,120750.0,0.19923146]
[1760036447097,0.45764023,120760.0,120740.0,0.31913716]
[1760036447301,0.50583023,120760.0,120750.0,0.16563146]
[1760036447509,0.22304023,120760.0,120750.0,0.22254146]
[1760036447937,0.45756023,120760.0,120750.0,0.22254146]
[1760036448912,0.22304023,120760.0,120750.0,0.22254146]
[1760036449121,0.45756023,120760.0,120750.0,0.22254146]
[1760036449544,0.26014248,120760.0,120750.0,0.26902146]
[1760036449712,0.02566248,120760.0,120750.0,0.26902146]
[1760036449915,0.23508248,120760.0,120750.0,0.26902146]
[1760036452836,0.00060248,120760.0,120750.0,0.26902146]
[1760036453035,0.23504248,120760.0,120750.0,0.26902146]
[1760036453797,0.40066023,120760.0,120750.0,0.26902146]
[1760036453998,0.16622023,120760.0,120750.0,0.26902146]
[1760036454407,0.40066023,120760.0,120750.0,0.26902146]
[1760036454803,0.00060248,120760.0,120750.0,0.26902146]
[1760036455212,0.23500248,120760.0,120750.0,0.26902146]
[1760036457452,0.01605541,120760.0,120750.0,0.35214352]
[1760036457666,0.00060248,120760.0,120750.0,0.58654352]
[1760036458561,0.0002,120770.0,120750.0,0.61677542]
[1760036458779,0.0002,120770.0,120760.0,0.59972348]
[1760036458989,0.0002,120770.0,120760.0,0.58324171]
[1760036459255,0.01565406,120790.0,120760.0,0.58324171]
[1760036459256,0.0002,120790.0,120780.0,0.16559032]
[1760036459483,0.0002838,120790.0,120780.0,0.53677428]
[1760036459712,0.0002838,120790.0,120780.0,0.38225428]
[1760036459962,0.0002838,120790.0,120780.0,0.61685428]
[1760036461700,0.0002838,120790.0,120780.0,0.61785428]
[1760036463285,0.0002838,120790.0,120780.0,0.38325428]
[1760036463460,0.0002838,120790.0,120780.0,0.61781428]
[1760036464009,0.0002838,120790.0,120780.0,0.61777428]
[1760036464776,0.0002838,120790.0,120780.0,0.63467921]
[1760036465223,0.00183938,120790.0,120780.0,0.63467921]
[1760036465944,0.00183938,120790.0,120780.0,0.40015921]
[1760036466166,0.00183938,120790.0,120780.0,0.63463921]
[1760036468516,0.00183938,120790.0,120780.0,0.63459921]
[1760036469382,0.00183938,120790.0,120780.0,0.40015921]
[1760036469588,0.00183938,120790.0,120780.0,0.63459921]
[1760036470312,0.00183938,120790.0,120780.0,0.63455921]
[1760036470730,0.4449,120810.0,120780.0,0.63455921]
[1760036470939,0.38744525,120810.0,120800.0,0.18965291]
[1760036471149,0.3951503,120810.0,120800.0,0.26884291]
[1760036471561,0.39618705,120810.0,120800.0,0.26884291]
[1760036471765,0.39618705,120810.0,120800.0,0.35196497]
[1760036471986,0.00154262,120810.0,120800.0,0.35196497]
[1760036472208,0.00154262,120810.0,120800.0,0.58636497]
[1760036472410,0.00154262,120810.0,120800.0,0.61651687]
[1760036472625,0.00154262,120810.0,120800.0,0.38211687]
[1760036472828,0.00154262,120810.0,120800.0,0.61655687]
[1760036473037,0.00154262,120810.0,120800.0,0.38211687]
[1760036473260,0.00154262,120810.0,120800.0,0.61655687]
[1760036473520,0.00154262,120810.0,120800.0,0.38211687]
[1760036473727,0.00154262,120810.0,120800.0,0.61655687]
[1760036473932,0.00154262,120810.0,120800.0,0.61755687]
[1760036474139,0.00154262,120810.0,120800.0,0.61655687]
[1760036474343,0.00154262,120810.0,120800.0,0.38211687]
[1760036474543,0.00154262,120810.0,120800.0,0.61751687]
[1760036476552,0.00154262,120810.0,120800.0,0.61747687]
[1760036476929,0.00154262,120810.0,120800.0,0.67803958]
[1760036477136,0.00924104,120810.0,120800.0,0.67803958]
[1760036477328,0.00924104,120810.0,120800.0,0.44367958]
[1760036477533,0.00924104,120810.0,120800.0,0.67803958]
[1760036478279,0.00924104,120810.0,120800.0,0.44367958]
[1760036478475,0.00924104,120810.0,120800.0,0.67803958]
[1760036478676,0.00924104,120810.0,120800.0,0.41352768]
[1760036479082,0.00924104,120810.0,120800.0,0.67799958]
[1760036482366,0.0002,120820.0,120810.0,0.1957011]
[1760036482574,0.00028373,120820.0,120810.0,0.35022316]
[1760036482780,0.00028373,120820.0,120810.0,0.61638316]
[1760036483222,0.00028373,120820.0,120810.0,0.38541585]
[1760036483438,0.00028373,120820.0,120810.0,0.61969585]
[1760036484101,0.00028373,120820.0,120810.0,0.38541585]
[1760036484336,0.00028373,120820.0,120810.0,0.70577585]
[1760036484546,0.20212769,120860.0,120850.0,0.16549441]
[1760036484547,0.34,120860.0,120850.0,0.16549441]
[1760036484772,0.37176372,120860.0,120850.0,0.16549441]
[1760036484978,0.37176372,120860.0,120850.0,0.19737441]
[1760036485606,0.53724444,120860.0,120850.0,0.22146441]
[1760036485865,0.54024444,120860.0,120850.0,0.22146441]
[1760036486075,0.39019135,120860.0,120850.0,0.22146441]
[1760036486305,0.55567207,120860.0,120850.0,0.22146441]
[1760036486482,0.60338207,120860.0,120850.0,0.16549441]
[1760036486688,0.58795444,120860.0,120850.0,0.16549441]
[1760036486863,0.55568262,120860.0,120850.0,0.16549441]
[1760036487276,0.55505711,120860.0,120850.0,0.16549441]
[1760036487865,0.55764769,120860.0,120850.0,0.16549441]
[1760036488114,0.57310021,120860.0,120850.0,0.16549441]
[1760036488474,0.57310021,120860.0,120850.0,0.19737441]
[1760036489508,0.40761949,120860.0,120850.0,0.22146441]
[1760036489730,0.62100021,120860.0,120850.0,0.16549441]
[1760036489907,0.92464832,120860.0,120850.0,0.16549441]
[1760036490412,0.92465473,120860.0,120850.0,0.16549441]
[1760036490751,0.92465473,120860.0,120840.0,0.18957783]
[1760036490955,0.45938441,120850.0,120830.0,0.19785392]
[1760036491177,0.02421,120840.0,120830.0,0.24516392]
[1760036491398,0.03966893,120840.0,120830.0,0.27704392]
[1760036493422,0.02521,120840.0,120830.0,0.27704392]
[1760036494388,0.03293915,120840.0,120830.0,0.27704392]
[1760036497076,0.06425915,120840.0,120830.0,0.22973392]
[1760036497909,0.06425915,120840.0,120830.0,0.27777392]
[1760036498519,0.03251014,120840.0,120830.0,0.27777392]
[1760036499804,0.0325155,120840.0,120830.0,0.27777392]
[1760036500619,0.0638355,120840.0,120830.0,0.27777392]
[1760036500820,0.0638355,120840.0,120830.0,0.22973392]
[1760036501040,0.04797443,120840.0,120830.0,0.27777392]
[1760036501254,0.0325155,120840.0,120830.0,0.27777392]
[1760036502068,0.04797443,120840.0,120830.0,0.27777392]
[1760036502637,0.04952904,120840.0,120830.0,0.27777392]
[1760036502856,0.08084904,120840.0,120830.0,0.22973392]
[1760036503845,0.06539011,120840.0,120830.0,0.22973392]
[1760036504455,0.06539242,120840.0,120830.0,0.22973392]
[1760036505082,0.75567053,120840.0,120830.0,0.17376392]
[1760036505292,0.77112946,120840.0,120830.0,0.17333509]
[1760036505498,0.46748135,120840.0,120830.0,0.17333509]
[1760036505706,0.77112946,120840.0,120830.0,0.17333509]
[1760036506151,0.1655355,120820.0,120810.0,0.18963533]
[1760036506400,0.01922682,120820.0,120810.0,0.1655492]
[1760036506606,0.63592322,120820.0,120810.0,0.1655492]
[1760036506830,0.34774752,120820.0,120810.0,0.1655492]
[1760036507055,0.06691752,120820.0,120810.0,0.1655492]
[1760036507285,0.05144511,120820.0,120810.0,0.1956292]
[1760036507518,0.05144511,120820.0,120810.0,0.2195992]
[1760036511027,0.05144511,120820.0,120810.0,0.1895192]
[1760036511278,0.05144511,120820.0,120810.0,0.1956292]
[1760036512238,0.04370829,120820.0,120810.0,0.1956292]
[1760036513066,0.27790829,120820.0,120810.0,0.1956292]
[1760036513896,0.27790829,120820.0,120810.0,0.1655492]
[1760036515096,0.27790829,120820.0,120810.0,0.1956292]
[1760036516220,0.01200829,120820.0,120810.0,0.2680192]
[1760036516391,0.00051829,120820.0,120810.0,0.2680192]
[1760036521257,0.00051829,120820.0,120810.0,0.35114126]
[1760036522098,0.00051829,120820.0,120810.0,0.61549316]
[1760036522567,0.00051829,120820.0,120810.0,0.70253316]
[1760036522986,0.00051829,120820.0,120810.0,0.70153316]
[1760036523182,0.00051829,120820.0,120810.0,0.61549316]
[1760036523388,0.00051829,120820.0,120810.0,0.70153316]
[1760036523590,0.00051829,120820.0,120810.0,0.70253316]
[1760036524902,0.00051829,120820.0,120810.0,0.70153316]
[1760036525341,0.00051829,120820.0,120810.0,0.70253316]
[1760036525951,0.00051829,120820.0,120810.0,0.38229316]
[1760036526178,0.00051829,120820.0,120810.0,0.70253316]
[1760036527820,0.00051829,120820.0,120810.0,0.46833316]
[1760036528022,0.00051829,120820.0,120810.0,0.70253316]
[1760036528426,0.35168,120860.0,120850.0,0.16549441]
[1760036528722,0.35183165,120860.0,120850.0,0.26723441]
[1760036529725,0.35283165,120860.0,120850.0,0.26723441]
[1760036529920,0.38405165,120860.0,120850.0,0.22238441]
[1760036531107,0.01283165,120860.0,120850.0,0.22238441]
[1760036531331,0.00115165,120860.0,120850.0,0.26723441]
[1760036534068,0.00322403,120860.0,120850.0,0.26723441]
[1760036538714,0.00222403,120860.0,120850.0,0.26723441]
[1760036541743,0.01390403,120860.0,120850.0,0.26723441]
[1760036545112,0.04512403,120860.0,120850.0,0.26723441]
[1760036545319,0.04493403,120860.0,120850.0,0.26723441]
[1760036545517,0.04493403,120860.0,120850.0,0.22238441]
[1760036545745,0.01371403,120860.0,120850.0,0.26723441]
[1760036546143,0.04493403,120860.0,120850.0,0.22238441]
[1760036546439,0.01371403,120860.0,120850.0,0.26723441]
[1760036547871,0.04493403,120860.0,120850.0,0.22238441]
[1760036548291,0.01371403,120860.0,120850.0,0.26723441]
[1760036548495,0.01371403,120860.0,120850.0,0.36723441]
[1760036549704,0.00203403,120860.0,120850.0,0.36723441]
[1760036549911,0.00203403,120860.0,120850.0,0.45035647]
[1760036550110,0.00203403,120860.0,120850.0,0.68447647]
[1760036550744,0.00013403,120860.0,120850.0,0.68447647]
[1760036552057,0.00013403,120860.0,120850.0,0.45035647]
[1760036552266,0.00013403,120860.0,120850.0,0.68447647]
[1760036552470,0.00013403,120860.0,120850.0,0.68547647]
[1760036552881,0.00013403,120860.0,120850.0,0.45135647]
[1760036553092,0.00013403,120860.0,120850.0,0.68547647]
[1760036554623,0.00013403,120860.0,120850.0,0.48150837]
[1760036554778,0.00013403,120860.0,120850.0,0.71562837]
[1760036554988,0.00013403,120860.0,120850.0,0.74046692]
[1760036555803,0.00013403,120860.0,120850.0,0.50634692]
[1760036556005,0.00013403,120860.0,120850.0,0.74046692]
[1760036557734,0.08372403,120860.0,120850.0,0.32338441]
[1760036557948,0.08372403,120860.0,120850.0,0.26649441]
[1760036558163,0.74470418,120860.0,120850.0,0.101]
[1760036558375,0.98656319,120860.0,120850.0,0.101]
[1760036558596,1.39127071,120860.0,120850.0,0.101]
[1760036558806,1.18199902,120860.0,120850.0,0.1]
[1760036559014,1.41611902,120860.0,120850.0,0.1]
[1760036559227,1.43159839,120860.0,120850.0,0.1]
[1760036559433,1.41611902,120860.0,120850.0,0.1]
[1760036559657,1.43158992,120860.0,120850.0,0.1]
[1760036560316,1.86182992,120860.0,120850.0,0.1]
[1760036561177,1.86182037,120860.0,120850.0,0.1]
[1760036562962,1.45711285,120860.0,120850.0,0.1]
[1760036563179,1.125083,120860.0,120850.0,0.1]
[1760036563394,0.79095413,120860.0,120850.0,0.1]
[1760036563605,0.28547341,120860.0,120850.0,0.26549441]
[1760036563816,0.68507413,120860.0,120850.0,0.26549441]
[1760036564021,1.02507413,120860.0,120850.0,0.26549441]
[1760036564516,0.94003413,120860.0,120850.0,0.1]
[1760036564720,1.02611413,120860.0,120850.0,0.1]
[1760036564898,1.02607413,120860.0,120850.0,0.1]
[1760036565102,0.79195413,120860.0,120850.0,0.1]
[1760036565284,1.02607413,120860.0,120850.0,0.1]
[1760036565493,1.51077845,120860.0,120850.0,0.1]
[1760036565702,1.51010925,120860.0,120850.0,0.1]
[1760036565940,1.43011245,120860.0,120850.0,0.1]
[1760036567492,1.42821245,120860.0,120850.0,0.1]
[1760036569118,0.70334493,120860.0,120850.0,0.1]
[1760036569311,1.42825245,120860.0,120850.0,0.1]
[1760036569616,1.10805245,120860.0,120850.0,0.1]
[1760036569818,1.42825245,120860.0,120850.0,0.1]
[1760036570030,1.34221245,120860.0,120850.0,0.1]
[1760036570236,1.02354493,120860.0,120850.0,0.1]
[1760036570674,0.70334493,120860.0,120850.0,0.1]
[1760036570908,0.51593384,120860.0,120850.0,0.26549441]
[1760036571150,0.51593384,120860.0,120850.0,0.36629441]
[1760036571151,0.09708,120860.0,120850.0,0.36629441]
[1760036571370,0.33136,120860.0,120850.0,0.36629441]
[1760036571552,0.36204,120860.0,120850.0,0.31839441]
[1760036571771,0.70204,120860.0,120850.0,0.31839441]
[1760036571970,0.63324072,120860.0,120850.0,0.26549441]
[1760036572185,0.90847072,120860.0,120850.0,0.26549441]
[1760036572380,0.90847072,120860.0,120850.0,0.1]
[1760036572581,0.58815072,120860.0,120850.0,0.1]
[1760036572811,0.89396246,120860.0,120850.0,0.1]
[1760036573442,0.82239072,120860.0,120850.0,0.1]
[1760036573575,0.82239072,120860.0,120850.0,0.26549441]
[1760036573992,0.62729688,120860.0,120850.0,0.26549441]
[1760036574203,0.44103072,120860.0,120850.0,0.26549441]
[1760036578040,0.28991278,120860.0,120850.0,0.1]
[1760036578242,0.60414958,120860.0,120850.0,0.1]
[1760036580029,0.62899727,120860.0,120850.0,0.1]
[1760036580436,0.31476047,120860.0,120850.0,0.1]
[1760036580664,0.24896278,120860.0,120850.0,0.26549441]
[1760036580869,0.33500278,120860.0,120850.0,0.26549441]
[1760036581085,0.56936278,120860.0,120850.0,0.26549441]
[1760036581562,0.57022278,120860.0,120850.0,0.26549441]
[1760036581772,0.24982278,120860.0,120850.0,0.26549441]
[1760036582015,0.57022278,120860.0,120850.0,0.26549441]
[1760036582403,0.00122,120860.0,120850.0,0.26549441]
[1760036582605,0.48624072,120860.0,120850.0,0.26549441]
[1760036582928,0.48710072,120860.0,120850.0,0.1]
[1760036583366,0.25274072,120860.0,120850.0,0.1]
[1760036583585,0.48620072,120860.0,120850.0,0.26549441]
[1760036584019,0.8731401,120860.0,120850.0,0.1]
[1760036584227,0.8731401,120860.0,120850.0,0.26549441]
[1760036584622,0.8740001,120860.0,120850.0,0.1]
[1760036585246,0.8740001,120860.0,120850.0,0.26549441]
[1760036586534,0.8731001,120860.0,120850.0,0.26549441]
[1760036587183,0.7870601,120860.0,120850.0,0.26549441]
[1760036587393,0.8731001,120860.0,120850.0,0.26549441]
[1760036587792,0.5527801,120860.0,120850.0,0.26549441]
[1760036587951,0.70761938,120860.0,120850.0,0.26549441]
[1760036588215,0.8731001,120860.0,120850.0,0.26549441]
[1760036589055,0.38729938,120860.0,120850.0,0.26549441]
[1760036589526,0.38693938,120860.0,120850.0,0.36801441]
[1760036589964,0.62125938,120860.0,120850.0,0.36801441]
[1760036590611,0.38693938,120860.0,120850.0,0.36801441]
[1760036590814,0.62125938,120860.0,120850.0,0.36801441]
[1760036591818,0.01087,120870.0,120860.0,0.16548072]
[1760036592052,0.21064,120870.0,120860.0,0.23587072]
[1760036592444,0.0002,120870.0,120860.0,0.35112278]
[1760036592698,0.23452,120870.0,120860.0,0.35112278]
[1760036593673,0.23452,120870.0,120860.0,0.32073746]
[1760036593674,0.2330259,120870.0,120860.0,0.32073746]
[1760036593887,0.0002,120880.0,120870.0,0.16546703]
[1760036593888,0.23432,120880.0,120870.0,0.16546703]
[1760036594100,0.23432,120880.0,120870.0,0.26798703]
[1760036594263,0.12543847,120890.0,120880.0,0.16545334]
[1760036594473,0.01191724,120890.0,120880.0,0.26797334]
[1760036594682,0.24627724,120890.0,120880.0,0.26797334]
[1760036595103,0.23448724,120890.0,120880.0,0.26797334]
[1760036595537,0.00012724,120890.0,120880.0,0.26797334]
[1760036595749,0.23448724,120890.0,120880.0,0.26797334]
[1760036598214,0.00012724,120890.0,120880.0,0.26797334]
[1760036598416,0.23444724,120890.0,120880.0,0.26797334]
[1760036598621,0.2360009,120890.0,120880.0,0.26797334]
[1760036599282,0.23122287,120890.0,120880.0,0.26511775]
[1760036599466,0.23110119,120890.0,120880.0,0.26511775]
[1760036600667,0.23247119,120890.0,120880.0,0.21887775]
[1760036600889,0.23110119,120890.0,120880.0,0.26511775]
[1760036603272,0.23247119,120890.0,120880.0,0.26511775]
[1760036603499,0.23247119,120890.0,120880.0,0.21887775]
[1760036603723,0.23110119,120890.0,120880.0,0.26511775]
[1760036604187,0.23575366,120890.0,120880.0,0.26511775]
[1760036609151,0.00155366,120890.0,120880.0,0.34823981]
[1760036609585,0.00155366,120890.0,120880.0,0.58243981]
[1760036610902,0.00155366,120890.0,120880.0,0.58239981]
[1760036611031,0.19242998,120910.0,120880.0,0.58239981]
[1760036611032,0.19242998,120910.0,120890.0,0.16543965]
[1760036611231,0.19242998,120910.0,120890.0,0.23582965]
[1760036611232,0.43445547,120910.0,120890.0,0.23582965]
[1760036611483,0.00051778,120900.0,120890.0,0.22171965]
[1760036612148,0.00051778,120900.0,120890.0,0.26795965]
[1760036612328,0.23467778,120900.0,120890.0,0.26795965]
[1760036613031,0.23567778,120900.0,120890.0,0.26795965]
[1760036614161,0.0092361,120900.0,120890.0,0.26795965]
[1760036614367,0.23563778,120900.0,120890.0,0.26795965]
[1760036614571,0.2433561,120900.0,120890.0,0.26795965]
[1760036615200,0.0092361,120900.0,120890.0,0.26795965]
[1760036615394,0.2433561,120900.0,120890.0,0.26795965]
[1760036617467,0.0092361,120900.0,120890.0,0.26795965]
[1760036617672,0.2433161,120900.0,120890.0,0.26795965]
[1760036621632,0.24333557,120900.0,120890.0,0.26795965]
[1760036625403,0.00925557,120900.0,120890.0,0.26795965]
[1760036625851,0.24333557,120900.0,120890.0,0.26795965]
[1760036627043,0.00925557,120900.0,120890.0,0.26795965]
[1760036627257,0.24333557,120900.0,120890.0,0.26795965]
[1760036628886,0.00925557,120900.0,120890.0,0.26795965]
[1760036629142,0.24333557,120900.0,120890.0,0.26795965]
[1760036630686,0.00925557,120900.0,120890.0,0.26795965]
[1760036630907,0.00925557,120900.0,120890.0,0.16543965]
[1760036630908,0.24333557,120900.0,120890.0,0.16543965]
[1760036631129,0.24333557,120900.0,120890.0,0.19600965]
[1760036631372,0.24333557,120900.0,120890.0,0.21902965]
[1760036631961,0.00925557,120900.0,120890.0,0.21902965]
[1760036632196,0.24333557,120900.0,120890.0,0.26284965]
[1760036636153,0.00925557,120900.0,120890.0,0.26284965]
[1760036636372,0.24333557,120900.0,120890.0,0.26284965]
[1760036638376,0.00925557,120900.0,120890.0,0.26284965]
[1760036638595,0.24333557,120900.0,120890.0,0.26284965]
[1760036640034,0.24323557,120900.0,120890.0,0.26284965]
[1760036640847,0.00905557,120900.0,120890.0,0.26284965]
[1760036640998,0.24309557,120900.0,120890.0,0.26284965]
[1760036641400,0.00905557,120900.0,120890.0,0.26284965]
[1760036641623,0.24309557,120900.0,120890.0,0.26284965]
[1760036643341,0.23535778,120900.0,120890.0,0.26284965]
[1760036644187,0.00131778,120900.0,120890.0,0.26284965]
[1760036656116,0.00031778,120900.0,120890.0,0.26284965]
[1760036661267,0.70316261,120900.0,120880.0,0.17087041]
[1760036661495,0.54911941,120900.0,120880.0,0.17087041]
[1760036661700,0.23404,120890.0,120880.0,0.17087041]
[1760036662139,0.39947965,120890.0,120880.0,0.16545334]
[1760036662358,0.19028057,120890.0,120880.0,0.16545334]
[1760036662572,0.42432057,120890.0,120880.0,0.16545334]
[1760036663430,0.19028057,120890.0,120880.0,0.16545334]
[1760036663672,0.42432057,120890.0,120880.0,0.16545334]
[1760036664600,0.02484092,120890.0,120880.0,0.19571334]
[1760036664836,0.00031778,120900.0,120890.0,0.16543965]
[1760036665060,0.00031778,120900.0,120890.0,0.23353965]
[1760036665258,0.23435778,120900.0,120890.0,0.26379965]
[1760036667507,0.00031778,120900.0,120890.0,0.26379965]
[1760036676742,0.00031778,120900.0,120890.0,0.21725965]
[1760036677200,0.00031778,120900.0,120890.0,0.26066965]
[1760036679237,0.00031778,120900.0,120890.0,0.21725965]
[1760036680388,0.00031778,120900.0,120890.0,0.26066965]
[1760036685411,0.10033468,120900.0,120890.0,0.26066965]
[1760036688900,0.10033468,120900.0,120890.0,0.21725965]
[1760036689117,0.10033468,120900.0,120890.0,0.16543965]
[1760036689521,0.10033468,120900.0,120890.0,0.19438965]
[1760036689723,0.26576065,120900.0,120890.0,0.16543965]
[1760036689941,0.50526065,120900.0,120890.0,0.16543965]
[1760036690122,0.50526065,120900.0,120880.0,0.1870062]
[1760036690351,0.50526065,120900.0,120890.0,0.16543965]
[1760036690554,0.16543965,120890.0,120880.0,0.1870062]
[1760036690762,0.16543965,120890.0,120880.0,0.18701334]
[1760036690975,0.35438271,120900.0,120880.0,0.18701334]
[1760036691186,0.46522225,120900.0,120890.0,0.16543965]
[1760036691394,0.69922225,120900.0,120890.0,0.16543965]
[1760036691960,0.69922225,120900.0,120880.0,0.18701334]
[1760036692181,0.69922225,120900.0,120890.0,0.16543965]
[1760036692569,0.49560444,120900.0,120890.0,0.16543965]
[1760036692983,0.40960444,120900.0,120890.0,0.16543965]
[1760036694438,0.41500444,120900.0,120890.0,0.16543965]
[1760036699160,0.03573954,120900.0,120890.0,0.16543965]
[1760036699360,0.0109,120900.0,120890.0,0.26110965]
[1760036699568,0.2449,120900.0,120890.0,0.26110965]
[1760036699773,0.0109,120900.0,120890.0,0.21708965]
[1760036699977,0.2449,120900.0,120890.0,0.21708965]
[1760036700927,0.2502,120900.0,120890.0,0.21708965]
[1760036701128,0.41562597,120900.0,120890.0,0.16543965]
[1760036701725,0.2502,120900.0,120890.0,0.16543965]
[1760036702800,0.0162,120900.0,120890.0,0.19420965]
[1760036703007,0.2502,120900.0,120890.0,0.26167965]
[1760036703230,0.0162,120900.0,120890.0,0.21599965]
[1760036703395,0.2502,120900.0,120890.0,0.16543965]
[1760036703595,0.2502,120900.0,120890.0,0.21599965]
[1760036703596,0.0162,120900.0,120890.0,0.21599965]
[1760036703824,0.2502,120900.0,120890.0,0.21599965]
[1760036704026,0.0162,120900.0,120890.0,0.21599965]
[1760036704164,0.2502,120900.0,120890.0,0.26167965]
[1760036704376,0.0162,120900.0,120890.0,0.26167965]
[1760036705272,0.0162,120900.0,120890.0,0.34480171]
[1760036705491,0.0162,120900.0,120890.0,0.57880171]
[1760036705702,0.0162,120900.0,120890.0,0.6036341]
[1760036706084,0.0162,120900.0,120890.0,0.633786]
[1760036707553,0.0214,120900.0,120890.0,0.633786]
[1760036707782,0.0214,120900.0,120890.0,0.634786]
[1760036708396,0.0214,120900.0,120890.0,0.633786]
[1760036708621,0.00015163,120910.0,120900.0,0.16542597]
[1760036708830,0.00015163,120910.0,120900.0,0.31601803]
[1760036709046,0.00015163,120910.0,120900.0,0.34478803]
[1760036709251,0.00066934,120910.0,120900.0,0.34478803]
[1760036709503,0.00066934,120910.0,120900.0,0.57874803]
[1760036709918,0.17345125,120940.0,120930.0,0.16538493]
[1760036710123,0.17395656,120940.0,120930.0,0.19415493]
[1760036710275,0.02881821,120940.0,120930.0,0.19415493]
[1760036710484,0.02229089,120940.0,120930.0,0.26162493]
[1760036710942,0.00205799,120940.0,120930.0,0.26162493]
[1760036711566,0.00305799,120940.0,120930.0,0.26162493]
[1760036715850,0.00305799,120940.0,120930.0,0.21594493]
[1760036716057,0.00305799,120940.0,120930.0,0.26162493]
[1760036716807,0.02727627,120940.0,120930.0,0.26162493]
[1760036720064,0.26119627,120940.0,120930.0,0.26162493]
[1760036721232,0.26119627,120940.0,120930.0,0.21594493]
[1760036721958,0.19264752,120940.0,120920.0,0.18716654]
[1760036722166,0.19264752,120940.0,120920.0,0.21593654]
[1760036722167,0.42501484,120940.0,120920.0,0.21593654]
[1760036722782,0.16538493,120930.0,120920.0,0.21593654]
[1760036723191,0.42401484,120940.0,120920.0,0.21593654]
[1760036723395,0.42401484,120940.0,120930.0,0.16538493]
[1760036725182,0.42501484,120940.0,120930.0,0.16538493]
[1760036726371,0.42501484,120940.0,120930.0,0.21594493]
[1760036727450,0.16538493,120930.0,120920.0,0.18716654]
[1760036727771,0.16538493,120930.0,120920.0,0.21593654]
[1760036727968,0.39926493,120930.0,120920.0,0.21593654]
[1760036728381,0.23388,120930.0,120920.0,0.21593654]
[1760036729149,0.39926493,120930.0,120920.0,0.21593654]
[1760036729347,0.23388,120930.0,120920.0,0.21593654]
[1760036730108,0.23388,120930.0,120920.0,0.26161654]
[1760036733316,0.02472359,120940.0,120930.0,0.16538493]
[1760036733520,0.42397484,120940.0,120930.0,0.19354493]
[1760036733753,0.43326125,120940.0,120930.0,0.26141493]
[1760036734720,0.42552752,120940.0,120930.0,0.26141493]
[1760036735656,0.42652752,120940.0,120930.0,0.26141493]
[1760036735858,0.42652752,120940.0,120930.0,0.21551493]
[1760036736036,0.20039188,120940.0,120930.0,0.21551493]
[1760036736241,0.43427188,120940.0,120930.0,0.21551493]
[1760036736654,0.43427188,120940.0,120930.0,0.26141493]
[1760036737559,0.20039188,120940.0,120930.0,0.26141493]
[1760036737763,0.43427188,120940.0,120930.0,0.26141493]
[1760036739246,0.20039188,120940.0,120930.0,0.26141493]
[1760036739714,0.03502063,120940.0,120930.0,0.26141493]
[1760036739967,0.26890063,120940.0,120930.0,0.26141493]
[1760036742361,0.43427637,120940.0,120930.0,0.26141493]
[1760036742561,0.26890512,120940.0,120930.0,0.26141493]
[1760036743819,0.2689051,120940.0,120930.0,0.26141493]
[1760036745345,0.43427635,120940.0,120930.0,0.21551493]
[1760036745554,0.43427635,120940.0,120930.0,0.26119493]
[1760036745816,0.20039635,120940.0,120930.0,0.26119493]
[1760036746049,0.43427635,120940.0,120930.0,0.26119493]
[1760036747185,0.2689051,120940.0,120930.0,0.26119493]
[1760036748059,0.43427635,120940.0,120930.0,0.26119493]
[1760036748204,0.43427635,120940.0,120930.0,0.21551493]
[1760036749276,0.0350251,120940.0,120930.0,0.21551493]
[1760036749482,0.2689051,120940.0,120930.0,0.26119493]
[1760036750450,0.0350251,120940.0,120930.0,0.26119493]
[1760036750655,0.2689051,120940.0,120930.0,0.26119493]
[1760036751039,0.43423635,120940.0,120930.0,0.26119493]
[1760036751672,0.0350251,120940.0,120930.0,0.26119493]
[1760036751905,0.2688651,120940.0,120930.0,0.26119493]
[1760036752221,0.43423635,120940.0,120930.0,0.16538493]
[1760036752627,0.2688651,120940.0,120930.0,0.19555493]
[1760036753352,0.26111627,120940.0,120930.0,0.21689493]
[1760036754320,0.19264752,120940.0,120930.0,0.05151]
[1760036754523,0.16538493,120930.0,120920.0,0.16539861]
[1760036754891,0.16538493,120930.0,120920.0,0.19556861]
[1760036759622,0.16538493,120930.0,120920.0,0.16539861]
[1760036760027,0.16642013,120930.0,120920.0,0.16539861]
[1760036760227,0.16642013,120930.0,120920.0,0.19556861]
[1760036761178,0.0010352,120930.0,120920.0,0.19556861]
[1760036761377,0.16642013,120930.0,120920.0,0.19556861]
[1760036762654,0.40026013,120930.0,120920.0,0.19556861]
[1760036764734,0.0010352,120930.0,120920.0,0.19556861]
[1760036764964,0.2348752,120930.0,120920.0,0.19556861]
[1760036765230,0.40026013,120930.0,120920.0,0.19556861]
[1760036767555,0.16642013,120930.0,120920.0,0.19556861]
[1760036767686,0.40026013,120930.0,120920.0,0.21769861]
[1760036768087,0.0010352,120930.0,120920.0,0.26296861]
[1760036768583,0.0010352,120930.0,120920.0,0.32572858]
[1760036768770,0.2348752,120930.0,120920.0,0.32572858]
[1760036768980,0.0010352,120930.0,120920.0,0.32572858]
[1760036769392,0.0010352,120930.0,120920.0,0.40885064]
[1760036769605,0.0010352,120930.0,120920.0,0.67284254]
[1760036771533,0.0010352,120930.0,120920.0,0.67384254]
[1760036772913,0.0010352,120930.0,120920.0,0.67380254]
[1760036773397,0.0010352,120930.0,120920.0,0.44000254]
[1760036773556,0.0010352,120930.0,120920.0,0.32672858]
[1760036773919,0.0010352,120930.0,120920.0,0.56052858]
[1760036776478,0.0010352,120930.0,120920.0,0.67380254]
[1760036779449,0.0010352,120930.0,120920.0,0.32672858]
[1760036779657,0.50642013,120930.0,120920.0,0.001]
[1760036779882,0.82021693,120930.0,120920.0,0.001]
[1760036780076,0.97274617,120930.0,120920.0,0.001]
[1760036780296,1.05870617,120930.0,120920.0,0.001]
[1760036780501,1.32507609,120930.0,120920.0,0.001]
[1760036780703,0.16542597,120900.0,120890.0,0.18815867]
[1760036780906,0.70241947,120910.0,120890.0,0.16681867]
[1760036781543,0.73921229,120910.0,120890.0,0.16681867]